bitfinex/quotes_ETHUSD_20241003
["timestamp","ask_amount","ask_price","bid_price","bid_amount"]
[1727943590660,3.41854,2340.2,2339.6,5.005409]
[1727943590843,3.41854,2340.2,2339.6,1.586139]
[1727943591043,3.41823,2340.4,2339.6,1.586139]
[1727943591044,3.41823,2340.4,2339.8,3.41907]
[1727943591288,3.41802,2340.6,2339.6,0.8202]
[1727943591289,3.41801,2340.6,2339.6,0.8202]
[1727943591594,3.4171,2341.2,2338.9,0.99256399]
[1727943591595,3.41715,2341.2,2340.5,3.41796]
[1727943591768,3.41713,2341.2,2340.6,3.41779]
[1727943591972,3.41766,2340.8,2340.3,4.24885]
[1727943592374,0.8283,2341.4,2340.3,1.255385]
[1727943592375,4.24514,2341.4,2340.3,1.255385]
[1727943592682,3.41685,2341.4,2340.5,3.41798]
[1727943592884,3.4169,2341.3,2340.7,3.41768]
[1727943593084,3.4169,2341.3,2340.7,6.83537]
[1727943593302,3.4169,2341.3,2340.8,0.7846]
[1727943593611,3.41685,2341.4,2340.8,0.7846]
[1727943593612,3.41685,2341.4,2340.8,4.20222]
[1727943593816,3.4167,2341.5,2340.8,4.20222]
[1727943594014,3.41676,2341.4,2340.8,4.20215]
[1727943594167,3.4167,2341.5,2340.8,4.20215]
[1727943594804,3.41676,2341.4,2340.8,7.61967]
[1727943595014,3.4167,2341.5,2341.0,3.41725]
[1727943595169,0.44640488,2341.8,2341.0,3.41725]
[1727943595170,0.44640488,2341.8,2341.0,3.4172]
[1727943595374,0.44640488,2341.8,2341.2,3.41692]
[1727943595670,3.86264488,2341.8,2341.2,3.41692]
[1727943595872,3.41618,2341.8,2341.2,3.41692]
[1727943596068,3.41633,2341.7,2341.2,3.41692]
[1727943596274,3.41581,2342.1,2341.6,3.41646]
[1727943596508,0.44628856,2342.2,2341.6,3.41646]
[1727943596716,0.44628856,2342.2,2341.3,0.7914]
[1727943596919,3.41539,2342.4,2341.8,3.41604]
[1727943597212,0.7625,2343.0,2341.8,3.41604]
[1727943597213,0.44622326,2342.6,2341.9,0.8089]
[1727943597575,3.41464,2342.9,2342.3,3.41531]
[1727943597910,3.41442,2343.0,2342.4,3.41521]
[1727943598114,3.41457,2342.9,2342.5,0.8327]
[1727943598283,3.41386,2343.4,2342.9,3.41443]
[1727943598484,3.41386,2343.4,2342.8,0.8327]
[1727943598823,3.41359,2343.6,2342.8,0.8327]
[1727943599125,3.41329,2343.8,2343.0,3.41439]
[1727943599327,3.41329,2343.8,2343.1,3.41427]
[1727943599472,0.8035,2344.1,2342.8,0.8327]
[1727943599674,3.41368,2343.6,2342.8,0.8327]
[1727943600506,3.41328,2343.8,2342.8,0.8327]
[1727943600806,0.8035,2344.1,2342.8,4.24732]
[1727943600979,3.41425,2343.2,2342.8,0.8327]
[1727943601297,3.0,2344.0,2342.9,3.41456]
[1727943601298,6.82725,2343.6,2342.9,3.41456]
[1727943601623,3.41333,2343.8,2343.2,3.41411]
[1727943601913,3.41333,2343.8,2343.1,3.41416]
[1727943602124,3.41333,2343.8,2343.1,6.82834]
[1727943602322,3.41333,2343.8,2343.1,3.41416]
[1727943602622,0.7606,2344.5,2343.2,0.7578]
[1727943602773,3.41312,2343.9,2343.2,4.17184]
[1727943602976,3.41304,2344.0,2343.4,3.41382]
[1727943603318,3.41289,2344.1,2343.5,3.41368]
[1727943603670,3.41289,2344.1,2343.3,3.41385]
[1727943603671,3.41299,2344.0,2343.3,3.41385]
[1727943603873,3.41299,2344.0,2343.4,3.41382]
[1727943604427,3.41299,2344.0,2342.7,5.36152912]
[1727943604428,0.7535,2343.8,2342.5,0.7717]
[1727943604715,3.41414,2343.2,2342.6,3.41489]
[1727943604925,3.41414,2343.2,2342.5,1.41321]
[1727943605216,3.41429,2343.1,2342.5,1.41321]
[1727943605426,3.41414,2343.2,2342.6,3.415]
[1727943605627,3.41429,2343.1,2342.5,1.41321]
[1727943605773,3.41414,2343.2,2342.5,0.7717]
[1727943605975,0.7535,2343.8,2342.6,3.41491]
[1727943606176,0.7535,2343.8,2342.5,0.7717]
[1727943606413,3.41423,2343.2,2342.6,3.41499]
[1727943606731,6.82846,2343.2,2342.6,3.41499]
[1727943606902,3.41423,2343.2,2342.6,3.41499]
[1727943607103,3.41431,2343.1,2341.9,5.36152912]
[1727943607359,3.41431,2343.1,2341.6,3.41638]
[1727943607360,3.41563,2342.2,2341.7,0.7904]
[1727943607644,3.41589,2342.0,2341.7,0.7904]
[1727943607850,3.41563,2342.2,2341.7,0.7904]
[1727943608204,3.41644,2341.7,2341.0,4.17894]
[1727943608452,3.41657,2341.6,2341.0,0.7616]
[1727943608772,3.41689,2341.4,2341.0,0.7616]
[1727943608920,3.41747,2341.0,2340.6,0.7616]
[1727943609255,3.41793,2340.6,2340.1,0.8246]
[1727943609455,3.41793,2340.6,2340.1,1.166457]
[1727943609600,6.41695,2341.3,2340.1,4.585077]
[1727943609806,6.41695,2341.3,2340.1,1.166457]
[1727943609807,3.41807,2340.5,2340.1,1.166457]
[1727943610005,3.41783,2340.7,2340.1,0.8246]
[1727943610337,3.41783,2340.7,2340.1,4.24324]
[1727943610537,3.41764,2340.8,2340.1,5.009417]
[1727943610739,3.41755,2340.9,2340.1,5.009417]
[1727943610740,3.41779,2340.7,2340.1,7.66176]
[1727943611045,3.41779,2340.7,2340.1,4.24315]
[1727943611348,3.41795,2340.6,2340.1,0.8246]
[1727943612045,3.41802,2340.6,2340.1,0.8246]
[1727943612245,3.41779,2340.7,2340.1,0.8246]
[1727943612415,3.41753,2340.9,2340.1,4.667494]
[1727943612619,3.41766,2340.8,2340.1,4.24315]
[1727943613007,3.41805,2340.6,2340.1,0.8246]
[1727943613352,6.83608,2340.6,2340.1,0.8246]
[1727943613524,6.83486,2341.0,2339.1,8.78158912]
[1727943613885,6.83486,2341.0,2338.9,3.42031]
[1727943613886,3.41783,2340.7,2339.7,0.8277]
[1727943614035,3.41849,2340.3,2339.7,0.8277]
[1727943614235,3.41851,2340.2,2339.7,0.8277]
[1727943614441,3.41851,2340.2,2339.7,1.252399]
[1727943614671,3.41821,2340.4,2339.7,1.252399]
[1727943614881,3.41801,2340.6,2339.7,0.8277]
[1727943615058,3.41975,2339.4,2338.6,3.42076]
[1727943615280,3.41975,2339.4,2338.8,0.7864]
[1727943615480,3.42013,2339.1,2338.7,0.342076]
[1727943615637,3.42042,2338.9,2338.3,0.7864]
[1727943615843,3.42042,2338.9,2338.4,0.420773]
[1727943616081,3.42042,2338.9,2338.3,0.7864]
[1727943616390,3.42088,2338.6,2338.3,0.7864]
[1727943616945,3.42041,2338.9,2338.3,0.7864]
[1727943617240,3.42024,2339.1,2338.4,3.42108]
[1727943617446,3.42036,2339.0,2338.4,3.42108]
[1727943617865,3.41969,2339.4,2338.3,0.7864]
[1727943618058,3.41985,2339.3,2338.3,4.20763]
[1727943618242,3.41985,2339.3,2338.4,0.420763]
[1727943618243,3.41997,2339.2,2338.4,0.420763]
[1727943618442,3.41989,2339.3,2338.4,0.420763]
[1727943618680,3.8061,2339.7,2338.5,3.42092]
[1727943618895,3.41993,2339.3,2338.5,6.84182]
[1727943619134,3.41948,2339.6,2338.9,3.4203]
[1727943619346,3.41885,2340.0,2339.4,3.41967]
[1727943619467,3.41885,2340.0,2338.6,0.7262583]
[1727943619468,3.41891,2340.0,2339.5,1.170667]
[1727943619800,5.36152912,2340.7,2339.9,3.41881]
[1727943619801,3.41788,2340.7,2339.9,3.41881]
[1727943619997,3.41788,2340.7,2340.1,3.41864]
[1727943620311,4.24136,2340.9,2339.7,3.41918]
[1727943620312,3.41827,2340.4,2339.7,3.41918]
[1727943620479,3.4186,2340.2,2339.5,4.24813]
[1727943620794,3.41918,2339.8,2339.1,3.42]
[1727943621103,3.41875,2340.1,2338.9,3.42036]
[1727943621424,3.41844,2340.3,2339.5,0.7726]
[1727943621716,3.41844,2340.3,2339.7,3.41921]
[1727943621882,0.825,2340.7,2340.0,3.41866]
[1727943621883,3.41784,2340.7,2340.0,3.41866]
[1727943622064,5.80794667,2341.5,2340.0,3.41866]
[1727943622065,3.41688,2341.4,2340.7,3.41768]
[1727943622270,3.41706,2341.2,2340.5,6.836]
[1727943622471,3.41706,2341.2,2340.5,4.10157]
[1727943622682,3.41706,2341.2,2340.5,6.83595]
[1727943622936,3.41706,2341.2,2340.4,3.41813]
[1727943622937,3.41716,2341.2,2340.4,3.41813]
[1727943623086,3.41716,2341.2,2340.6,3.41791]
[1727943623291,3.41716,2341.2,2340.5,0.8064]
[1727943623511,3.41714,2341.2,2340.5,0.8064]
[1727943623806,3.4169,2341.3,2340.6,6.83569]
[1727943624006,3.4167,2341.5,2340.9,3.41742]
[1727943624299,3.41709,2341.2,2340.6,3.41786]
[1727943624502,3.41678,2341.4,2340.6,3.41786]
[1727943624835,3.86271433,2341.8,2340.5,0.8064]
[1727943624836,3.41766,2340.8,2340.5,0.8064]
[1727943625003,3.41796,2340.6,2340.1,0.8133]
[1727943625205,3.41766,2340.8,2340.2,3.4184]
[1727943625419,4.20183,2341.2,2340.2,0.765043]
[1727943625591,3.4174,2341.0,2340.5,3.41807]
[1727943625786,3.0,2341.3,2340.1,0.8133]
[1727943625991,3.41874,2340.1,2339.4,3.41955]
[1727943626394,3.41874,2340.1,2339.5,3.41951]
[1727943626741,3.41874,2340.1,2339.4,3.840745]
[1727943626886,3.41873,2340.1,2339.2,0.7924]
[1727943627239,6.18982912,2340.9,2339.2,0.7924]
[1727943627240,3.0,2340.6,2339.2,0.7924]
[1727943627539,3.41949,2339.6,2339.2,0.7924]
[1727943627747,3.0,2340.0,2338.6,3.42076]
[1727943628042,0.8283,2339.6,2338.6,0.7924]
[1727943628341,3.42024,2339.1,2338.6,0.7924]
[1727943628489,3.42022,2339.1,2338.6,0.7924]
[1727943629240,3.41959,2339.5,2338.8,3.42054]
[1727943629532,3.41968,2339.4,2338.6,4.21319]
[1727943629699,5.36152912,2339.6,2338.1,0.1042481]
[1727943629921,0.7946,2338.9,2338.1,0.1042481]
[1727943630109,3.42078,2338.7,2338.1,0.1042481]
[1727943630290,3.7946,2339.3,2338.1,0.1042481]
[1727943630291,3.42115,2338.4,2338.1,0.1042481]
[1727943630893,3.42063,2338.8,2338.1,0.1042481]
[1727943630894,3.42143,2338.2,2338.1,0.1042481]
[1727943631093,6.42143,2338.2,2338.1,0.1042481]
[1727943632143,3.42083,2338.7,2338.1,0.1042481]
[1727943632340,3.42109,2338.5,2338.1,0.53517291]
[1727943632629,3.42107,2338.5,2338.1,0.1042481]
[1727943632837,3.42143,2338.2,2338.1,0.1042481]
[1727943633335,6.42143,2338.2,2338.1,0.1042481]
[1727943635541,3.42143,2338.2,2338.1,0.1042481]
[1727943636465,6.42143,2338.2,2338.1,0.1042481]
[1727943637047,20.610377,2338.2,2338.1,0.1042481]
[1727943637432,20.93956767,2338.2,2337.6,0.00080427]
[1727943637635,3.42128,2338.3,2337.6,0.00080427]
[1727943637636,12.33368912,2337.7,2337.6,0.00080427]
[1727943637833,59.67296212,2337.7,2337.6,0.00080427]
[1727943638251,58.92496012,2337.7,2337.6,0.00080427]
[1727943638747,59.64906012,2337.7,2337.6,0.00080427]
[1727943638935,39.18841812,2337.7,2337.6,0.00080427]
[1727943639279,3.0,2337.6,2335.8,0.115735]
[1727943639499,3.0,2336.3,2335.8,0.115735]
[1727943639660,3.0,2336.3,2333.8,0.8277]
[1727943639661,0.328615,2335.0,2333.3,5.36152912]
[1727943639840,3.47657,2334.7,2333.9,3.42772]
[1727943640036,3.47636,2334.9,2334.1,3.42742]
[1727943640381,3.47636,2334.9,2332.2,5.36152912]
[1727943640382,0.05,2333.8,2332.2,5.36152912]
[1727943640575,0.05,2334.9,2333.3,3.42853]
[1727943640881,0.328615,2335.0,2334.6,3.4266]
[1727943641031,0.328615,2335.0,2333.9,5.36152912]
[1727943641032,0.328615,2335.0,2334.7,3.42645]
[1727943641236,0.328615,2335.0,2334.9,3.42627]
[1727943641459,0.00218,2335.3,2335.2,3.42583]
[1727943641659,0.00218,2335.3,2335.2,4.453609]
[1727943641899,0.05,2336.6,2335.2,1.027779]
[1727943642104,0.05,2336.2,2335.4,3.42542]
[1727943642261,0.05,2336.2,2335.1,3.42594]
[1727943642262,0.05,2336.0,2335.1,3.42594]
[1727943642458,0.05,2336.2,2334.6,3.0]
[1727943642459,3.52437,2336.2,2335.4,3.42545]
[1727943642662,3.42457,2336.1,2335.5,0.7514]
[1727943642856,3.47493,2335.9,2335.1,0.7514]
[1727943643187,3.52515,2335.7,2335.1,0.7514]
[1727943643389,3.52515,2335.7,2334.7,0.7514]
[1727943643390,3.52551,2335.5,2334.7,0.7514]
[1727943643588,0.05,2335.3,2334.7,0.7514]
[1727943643883,3.47578,2335.3,2334.7,4.17796]
[1727943644057,3.47578,2335.3,2334.7,0.7514]
[1727943644258,0.05,2335.2,2334.7,0.7514]
[1727943644499,0.05,2335.4,2334.8,3.4263]
[1727943644685,0.05,2335.4,2334.8,0.41777]
[1727943644898,3.47557,2335.4,2334.7,0.7514]
[1727943645065,3.52583,2335.2,2334.7,0.7514]
[1727943645265,0.05,2335.4,2334.7,0.7514]
[1727943645468,0.05,2335.5,2335.0,3.42605]
[1727943645779,0.05,2335.5,2334.9,3.42617]
[1727943645780,0.1,2335.5,2334.9,3.42617]
[1727943645991,0.1,2335.5,2335.0,3.4261]
[1727943646199,0.05,2336.0,2334.9,0.760409]
[1727943646513,3.47495,2335.8,2335.4,0.7711]
[1727943646663,3.47495,2335.8,2335.1,3.42589]
[1727943646664,0.05,2335.8,2335.2,3.42579]
[1727943646865,0.05,2335.8,2335.4,3.42539]
[1727943647069,0.05,2335.8,2335.2,3.845419]
[1727943647293,0.05,2335.9,2335.2,3.845419]
[1727943647513,0.05,2335.7,2335.0,4.19716]
[1727943647751,3.42412,2336.4,2335.0,0.7711]
[1727943647752,3.52539,2335.5,2335.0,0.7711]
[1727943648066,0.05,2335.5,2335.0,3.42608]
[1727943648265,0.05,2335.5,2335.0,3.768618]
[1727943648496,0.05,2335.7,2334.7,3.42646]
[1727943648698,0.05,2335.2,2334.7,3.42645]
[1727943648976,0.05,2335.7,2335.1,3.42595]
[1727943649294,0.05,2335.7,2335.2,3.42578]
[1727943649494,0.05,2335.7,2335.1,3.42595]
[1727943649796,0.05,2335.7,2335.0,3.42612]
[1727943650004,0.05,2335.7,2335.2,3.42569]
[1727943650313,0.05,2335.8,2335.2,3.42569]
[1727943650607,0.05,2335.8,2335.2,3.42582]
[1727943650768,0.05,2335.9,2335.3,3.42567]
[1727943650973,0.05,2335.9,2335.1,3.42593]
[1727943650974,0.05,2335.8,2335.1,3.42593]
[1727943651182,0.05,2335.5,2334.9,3.42621]
[1727943651408,0.05,2335.4,2334.4,0.823]
[1727943651575,3.52535,2335.6,2334.4,0.823]
[1727943651786,0.1,2335.6,2335.0,3.42602]
[1727943651993,0.1,2335.2,2334.6,3.42661]
[1727943652203,0.1,2335.2,2334.4,4.24992]
[1727943652204,0.05,2335.0,2334.4,4.24992]
[1727943652405,3.42628,2334.9,2334.4,0.823]
[1727943652618,0.05,2334.7,2334.4,0.823]
[1727943653172,0.05,2334.9,2334.4,0.823]
[1727943653384,0.1,2335.1,2334.6,3.42661]
[1727943653713,3.52598,2335.1,2334.6,3.42661]
[1727943654041,0.1,2335.1,2334.4,4.24988]
[1727943654171,3.52599,2335.1,2334.4,4.674878]
[1727943654373,3.42673,2334.6,2333.9,1.0897]
[1727943654606,0.1,2334.7,2333.9,1.0897]
[1727943654607,3.52667,2334.7,2334.0,3.42744]
[1727943654810,0.05,2334.4,2333.9,1.0897]
[1727943655078,0.05,2335.0,2334.4,3.4269]
[1727943655295,0.05,2334.8,2334.4,0.685415]
[1727943655634,0.05,2334.9,2334.5,3.42683]
[1727943655777,0.05,2334.9,2334.4,3.42691]
[1727943655978,0.05,2335.3,2334.8,3.42641]
[1727943656179,0.05,2335.4,2334.8,3.42641]
[1727943656373,0.05,2335.4,2335.2,3.4257]
[1727943656602,0.05,2336.4,2335.4,3.42548]
[1727943656807,0.05,2336.4,2335.9,3.42471]
[1727943657279,0.05,2336.3,2335.9,3.42471]
[1727943657517,0.05,2336.3,2335.7,3.42503]
[1727943657518,0.05,2336.3,2335.7,3.42497]
[1727943657726,0.05,2336.4,2335.2,3.42571]
[1727943657727,0.1,2335.8,2335.2,3.42571]
[1727943658013,0.05,2335.8,2335.4,3.42552]
[1727943658220,0.05,2335.8,2335.2,3.42578]
[1727943658393,0.05,2335.8,2335.0,3.42608]
[1727943658575,0.05,2335.8,2335.4,3.4254]
[1727943658775,0.05,2335.8,2335.4,6.85085]
[1727943659016,0.05,2335.8,2335.4,3.4254]
[1727943659213,0.05,2336.0,2335.4,3.4254]
[1727943659417,0.05,2336.2,2335.6,3.42519]
[1727943659576,0.05,2336.9,2335.6,3.97521]
[1727943659779,1.0137,2337.3,2335.6,3.97521]
[1727943659780,3.47276,2337.3,2336.6,3.42374]
[1727943660007,0.05,2337.2,2336.6,3.42368]
[1727943660216,0.1,2337.3,2336.6,3.42368]
[1727943660482,0.1,2337.5,2337.0,3.4231]
[1727943660737,3.4725,2337.5,2336.9,3.42332]
[1727943661032,3.52196,2337.9,2337.1,3.42301]
[1727943661330,0.05,2338.1,2337.6,3.4223]
[1727943661545,0.05,2338.0,2337.5,3.42236]
[1727943661833,1.0453,2338.3,2337.7,3.42215]
[1727943661834,1.0953,2338.3,2337.7,3.42215]
[1727943662143,4.5166,2338.3,2337.7,3.42215]
[1727943662285,0.05,2338.3,2337.7,3.42206]
[1727943662683,0.05,2338.3,2337.8,3.42199]
[1727943662925,0.0022326,2338.5,2338.0,3.42171]
[1727943663241,0.0022326,2338.5,2338.2,3.42134]
[1727943663414,0.0022326,2338.5,2338.0,4.51685]
[1727943663619,3.47175,2338.0,2337.5,1.0728]
[1727943663922,0.1,2338.0,2337.2,3.621]
[1727943664083,0.1,2338.0,2337.2,7.640944]
[1727943664448,1.0179,2338.3,2337.2,1.0728]
[1727943664449,3.47232,2337.6,2337.2,1.0728]
[1727943664637,3.47261,2337.4,2336.8,3.42344]
[1727943664786,0.05,2337.4,2336.9,3.42331]
[1727943664980,0.05,2337.4,2336.8,3.42344]
[1727943665226,3.42148,2338.2,2337.3,3.42264]
[1727943665227,0.05,2337.8,2337.3,3.42264]
[1727943665391,0.1,2337.8,2337.3,3.42264]
[1727943665595,0.1,2337.8,2337.1,3.42301]
[1727943665596,0.05,2337.6,2337.1,3.42301]
[1727943665884,0.05,2337.6,2337.2,3.42279]
[1727943666125,0.1,2337.8,2337.3,3.42263]
[1727943666329,0.1,2337.8,2337.4,3.4225]
[1727943666659,0.1,2337.8,2337.3,3.42263]
[1727943666865,0.05,2338.2,2337.5,1.0847]
[1727943667046,0.0022326,2338.5,2338.4,3.42114]
[1727943667428,0.0022326,2338.5,2338.4,4.105382]
[1727943667908,0.0022326,2338.5,2338.4,3.42114]
[1727943669715,0.0022326,2338.5,2338.3,4.44568]
[1727943669947,0.0522326,2338.5,2338.0,3.42171]
[1727943670259,0.0522326,2338.5,2338.1,3.42157]
[1727943670469,0.0522326,2338.5,2338.1,3.42153]
[1727943670666,0.0522326,2338.5,2338.2,3.42141]
[1727943670815,0.0522326,2338.5,2337.8,1.0086]
[1727943670816,0.0022326,2338.5,2338.4,3.42114]
[1727943671017,0.0022326,2338.5,2338.4,4.42974]
[1727943672116,0.05,2339.7,2339.2,3.4199]
[1727943672318,0.1,2339.7,2339.3,3.41981]
[1727943672533,0.1,2339.2,2338.7,3.42061]
[1727943672964,0.05,2338.7,2338.2,3.42132]
[1727943673130,0.05,2338.9,2338.6,3.42085]
[1727943673333,0.05,2338.9,2338.7,3.42061]
[1727943673547,0.05,2338.7,2338.4,3.42104]
[1727943673953,0.05,2338.7,2338.4,3.42102]
[1727943674155,0.05,2338.7,2338.5,3.42097]
[1727943674353,0.05,2338.7,2338.3,3.42117]
[1727943674669,0.05,2338.3,2337.6,6.40342912]
[1727943674870,3.4204,2339.0,2338.6,3.42085]
[1727943674871,0.05,2339.0,2338.6,3.42085]
[1727943675076,0.05,2339.0,2338.9,3.42041]
[1727943675366,0.05,2339.4,2338.9,3.42037]
[1727943675662,0.05,2339.4,2339.1,3.42001]
[1727943675966,0.05,2339.4,2339.1,3.42]
[1727943676167,1.0979,2339.8,2338.7,3.42062]
[1727943676168,0.05,2339.1,2338.7,3.42062]
[1727943676363,0.05,2339.0,2338.7,3.42062]
[1727943676663,0.05,2339.2,2338.9,3.42041]
[1727943676830,0.05,2339.2,2338.9,3.42031]
[1727943677420,0.05,2339.2,2339.0,3.42014]
[1727943677668,0.05,2339.4,2339.3,3.41982]
[1727943677822,0.05,2339.4,2339.1,3.42003]
[1727943678023,0.05,2339.4,2339.3,3.41982]
[1727943679034,0.05,2339.7,2339.1,1.0437]
[1727943679270,0.05,2340.0,2339.7,3.41924]
[1727943679570,1.1166,2340.6,2339.8,3.41897]
[1727943679779,0.05,2340.8,2339.8,3.41897]
[1727943680065,0.05,2340.7,2340.6,3.41792]
[1727943680274,0.05,2341.1,2341.0,3.41734]
[1727943680425,1.0166,2341.6,2340.8,3.41751]
[1727943680426,0.05,2341.6,2340.8,3.41751]
[1727943680629,0.05,2341.6,2341.5,3.41661]
[1727943680876,1.34876915,2341.8,2341.5,3.41661]
[1727943681166,1.34876915,2341.8,2341.4,3.41675]
[1727943681368,1.34876915,2341.8,2341.6,3.41646]
[1727943681670,1.29876915,2341.8,2341.6,3.41646]
[1727943681825,1.29876915,2341.8,2341.6,9.32798912]
[1727943682175,1.29876915,2341.8,2341.6,10.34178912]
[1727943682673,0.34994013,2341.7,2341.6,13.34178912]
[1727943682823,1.29876915,2341.8,2341.7,3.41632]
[1727943683027,0.1,2341.6,2340.8,3.41763]
[1727943683373,0.05,2341.3,2341.2,3.41705]
[1727943683671,0.05,2340.9,2340.7,3.41764]
[1727943683871,0.05,2340.9,2340.7,3.41766]
[1727943684168,0.05,2340.9,2340.8,3.41763]
[1727943684371,0.05,2341.2,2340.2,1.0799]
[1727943684573,0.05,2341.0,2340.6,3.4178]
[1727943684755,0.05,2340.8,2340.5,3.41799]
[1727943684957,0.1,2340.6,2340.2,4.49835]
[1727943685120,0.05,2340.0,2339.8,1.0779]
[1727943685334,0.05,2340.0,2339.7,3.41914]
[1727943685733,0.05,2340.0,2339.7,4.103002]
[1727943686032,0.05,2340.0,2339.3,8.84802912]
[1727943686033,0.05,2340.0,2339.6,3.41932]
[1727943686235,0.05,2340.1,2339.6,3.41932]
[1727943686236,0.05,2339.8,2339.6,3.41932]
[1727943686483,0.05,2339.8,2339.6,3.41929]
[1727943686681,0.05,2339.6,2338.9,6.43332912]
[1727943686882,0.05,2339.8,2339.7,3.41924]
[1727943687087,0.05,2340.0,2339.9,3.41894]
[1727943687234,0.05,2339.7,2339.6,3.41937]
[1727943687934,0.05,2339.7,2339.0,0.64333291]
[1727943687935,0.05,2338.7,2337.8,1.0113]
[1727943688134,0.05,2338.7,2338.0,3.42171]
[1727943688135,0.05,2338.1,2338.0,3.42171]
[1727943688334,0.1,2338.5,2338.2,3.42131]
[1727943688583,0.05,2338.7,2338.5,3.42095]
[1727943688732,0.1,2338.7,2338.4,3.42114]
[1727943688938,0.05,2338.7,2338.5,3.42098]
[1727943689186,0.05,2338.5,2338.4,3.42114]
[1727943689388,0.05,2338.8,2338.6,3.42071]
[1727943689536,1.112,2339.3,2338.6,3.42071]
[1727943689537,0.05,2338.9,2338.6,3.42071]
[1727943689731,0.05,2339.2,2339.0,3.42023]
[1727943689962,0.05,2339.3,2339.1,3.42011]
[1727943690186,0.05,2338.9,2338.6,3.831256]
[1727943690352,0.05,2338.9,2338.1,3.8080711]
[1727943690353,0.05,2338.5,2338.2,3.42129]
[1727943690671,0.05,2338.9,2338.7,3.42059]
[1727943690991,0.05,2339.3,2339.0,3.42015]
[1727943691133,0.05,2339.2,2339.1,3.42011]
[1727943691338,0.05,2339.3,2339.0,3.42015]
[1727943691609,0.05,2339.4,2336.0,7.94917734]
[1727943691610,0.05,2338.1,2337.7,3.42215]
[1727943691778,0.05,2338.1,2337.8,0.443655]
[1727943691988,0.05,2338.1,2337.9,3.42177]
[1727943692338,0.05,2338.0,2337.8,3.422]
[1727943692538,3.42067,2338.8,2337.8,3.422]
[1727943692539,3.419,2339.9,2339.1,3.41998]
[1727943692950,3.41921,2339.8,2339.1,3.41998]
[1727943693177,3.4192,2339.8,2339.1,3.42011]
[1727943693379,3.4192,2339.8,2338.8,1.0144]
[1727943693582,7.95218,2340.0,2339.3,3.41982]
[1727943693906,4.53327,2340.0,2339.3,3.41982]
[1727943694257,1.1144,2340.0,2338.9,3.42033]
[1727943694485,3.41977,2339.4,2338.7,3.42067]
[1727943694655,1.1144,2340.0,2338.5,3.42097]
[1727943694656,3.41936,2339.7,2338.9,3.42036]
[1727943695051,3.41923,2339.8,2338.9,3.42036]
[1727943695365,3.41923,2339.8,2339.0,0.342036]
[1727943695568,1.1144,2340.0,2339.0,0.342036]
[1727943695770,3.4192,2339.8,2339.0,0.342036]
[1727943695975,1.0669,2339.0,2337.7,0.4286]
[1727943696297,3.41995,2339.3,2338.5,3.42099]
[1727943696454,3.41995,2339.3,2338.6,3.42083]
[1727943696876,3.42034,2339.0,2338.1,4.50007]
[1727943697120,4.0669,2339.4,2337.7,1.0716]
[1727943697424,3.4206,2338.8,2338.2,3.42132]
[1727943697574,3.42005,2339.2,2338.4,3.42102]
[1727943697772,3.42005,2339.2,2338.4,0.342102]
[1727943698021,4.48667,2339.4,2338.8,3.42053]
[1727943698202,4.5047,2339.8,2339.2,3.41994]
[1727943698385,3.41925,2339.7,2339.0,3.42021]
[1727943698572,3.41941,2339.6,2338.5,0.55]
[1727943698777,6.83984,2339.3,2338.7,3.42062]
[1727943698977,6.83985,2339.3,2338.7,3.42062]
[1727943699207,6.83985,2339.3,2338.6,3.42083]
[1727943699208,3.42007,2339.2,2338.6,3.42083]
[1727943699423,3.41991,2339.3,2338.6,3.42083]
[1727943699780,6.83984,2339.3,2338.7,3.42058]
[1727943700117,6.83926,2339.5,2338.8,3.42053]
[1727943700418,6.83926,2339.5,2338.7,3.42058]
[1727943700419,3.41983,2339.3,2338.7,3.42058]
[1727943700577,3.41997,2339.2,2338.5,3.4209]
[1727943700778,3.42086,2338.6,2338.0,1.0663]
[1727943700990,3.4206,2338.8,2337.5,1.0663]
[1727943701314,3.4206,2338.8,2338.0,3.42163]
[1727943701673,3.42088,2338.6,2338.0,3.42162]
[1727943701877,1.0956,2339.0,2337.8,3.42198]
[1727943702185,3.42115,2338.4,2337.8,3.42192]
[1727943702578,3.42091,2338.6,2338.0,3.42162]
[1727943702811,3.42091,2338.6,2338.0,6.84325]
[1727943702812,3.462912,2338.6,2338.0,6.84325]
[1727943703320,3.462912,2338.6,2338.0,3.42162]
[1727943703728,0.1157543,2339.0,2338.1,2.2805]
[1727943703936,0.1157543,2339.0,2338.9,5.00091]
[1727943704078,0.1157543,2339.0,2338.9,9.81243912]
[1727943704279,0.1157543,2339.0,2338.9,10.36243912]
[1727943705224,0.1157543,2339.0,2338.9,11.95972272]
[1727943705580,0.1157543,2339.0,2338.9,3.42041]
[1727943706077,0.1157543,2339.0,2338.8,3.42042]
[1727943706718,0.1157543,2339.0,2338.9,3.42041]
[1727943708485,1.1444543,2339.0,2338.6,3.42071]
[1727943708685,1.1444543,2339.0,2337.8,3.422]
[1727943708686,0.96678566,2338.9,2337.8,3.422]
[1727943708923,3.42088,2338.6,2338.0,3.42163]
[1727943709087,4.9197593,2338.6,2337.9,6.84359]
[1727943709288,4.9197593,2338.6,2337.9,3.42178]